fUSD/lending_fUSD_20250225
["ID","MTS","AMOUNT","RATE_DAILY","PERIOD"]
[354389607,1740468766371,-1752.42,0.00057534,120]
[354389608,1740468766382,-538.64,0.00057534,120]
[354389609,1740468766393,-1452.1,0.00057534,120]
[354389610,1740468766404,-1822.96,0.00057534,120]
[354389611,1740468766415,-1851.24,0.00057534,120]
[354389612,1740468766425,-301.61749091,0.00057534,120]
[354389613,1740468766436,-607.87,0.00057534,120]
[354389614,1740468766446,-2265.65,0.00057534,120]
[354389615,1740468766458,-3192.11,0.00057534,120]
[354389616,1740468766469,-3707.86,0.00057534,120]
[354389617,1740468766479,-1530.35,0.00057534,120]
[354389618,1740468766489,-1400.72,0.00057534,120]
[354389619,1740468766500,-813.46,0.00057534,120]
[354389620,1740468766511,-1028.29,0.00057534,120]
[354389621,1740468766521,-1470.7,0.00057534,120]
[354389622,1740468766532,-640.5,0.00057534,120]
[354389623,1740468766542,-2337.12,0.00057534,120]
[354389624,1740468766551,-3975.46,0.00057534,120]
[354389625,1740468766562,-3333.6,0.00057534,120]
[354389626,1740468766572,-5873.49,0.00057534,120]
[354389627,1740468766581,-1036.75,0.00057534,120]
[354389628,1740468766593,-500.0,0.00057534,120]
[354389629,1740468766603,-562.09,0.00057534,120]
[354389630,1740468766613,-2745.61,0.00057534,120]
[354389631,1740468766623,-707.46,0.00057534,120]
[354389632,1740468766634,-4540.04,0.00057534,120]
[354389633,1740468766644,-1113.18,0.00057534,120]
[354389634,1740468766654,-613.18,0.00057534,120]
[354389635,1740468766665,-3052.04,0.00057534,120]
[354389636,1740468766675,-2703.16,0.00057534,120]
[354389637,1740468766685,-522.41,0.00057534,120]
[354389638,1740468766694,-551.64,0.00057534,120]
[354389639,1740468766704,-500.0,0.00057534,120]
[354389640,1740468766715,-1552.51,0.00057534,120]
[354389641,1740468766725,-1000.0,0.00057534,60]
[354389642,1740468766736,-2971.45,0.00057534,90]
[354389643,1740468766747,-1701.44,0.00057534,120]
[354389644,1740468766756,-553.8,0.00057534,120]
[354389645,1740468766766,-1833.0,0.00057534,120]
[354389646,1740468766776,-2581.17,0.00057534,120]
[354389647,1740468766785,-3435.08,0.00057534,120]
[354389648,1740468766794,-500.0,0.00057534,120]
[354389649,1740468766804,-522.17,0.00057534,120]
[354389650,1740468766814,-500.0,0.00057534,120]
[354389651,1740468766824,-857.98,0.00057534,120]
[354389652,1740468766834,-3140.0,0.00057534,120]
[354389653,1740468766848,-3227.53,0.00057534,120]
[354389654,1740468766858,-500.0,0.00057534,120]
[354389655,1740468766868,-500.0,0.00057534,120]
[354389656,1740468766878,-775.19,0.00057534,120]
[354389657,1740468766887,-872.89,0.00057534,120]
[354389658,1740468766897,-500.0,0.00057534,120]
[354389659,1740468766906,-2538.08,0.00057534,120]
[354389660,1740468766917,-2940.18,0.00057534,120]
[354389661,1740468766927,-3583.88,0.00057534,120]
[354389662,1740468766936,-2559.65,0.00057534,120]
[354389663,1740468766945,-1118.81,0.00057534,120]
[354389664,1740468766954,-688.16,0.00057534,120]
[354389665,1740468766964,-500.0,0.00057534,120]
[354389666,1740468766974,-3329.23,0.00057534,120]
[354389667,1740468766983,-3487.12,0.00057534,120]
[354389668,1740468766992,-1907.44,0.00057534,120]
[354389669,1740468767001,-568.38,0.00057534,120]
[354389670,1740468767010,-2138.38,0.00057534,120]
[354389671,1740468767019,-1469.89,0.00057534,120]
[354389672,1740468767029,-880.12,0.00057534,120]
[354389673,1740468767039,-500.0,0.00057534,120]
[354389674,1740468767048,-1941.03,0.00057534,120]
[354389675,1740468767058,-998.34,0.00057534,120]
[354389676,1740468767067,-1969.46,0.00057534,120]
[354389677,1740468767076,-3496.1,0.00057534,120]
[354389678,1740468767086,-2020.04,0.00057534,120]
[354389679,1740468767102,-1704.77,0.00057534,120]
[354389680,1740468767113,-500.0,0.00057534,120]
[354389681,1740468767124,-3000.0,0.00057534,120]
[354389682,1740468767134,-1814.1,0.00057534,120]
[354389683,1740468767147,-3162.2,0.00057534,120]
[354389684,1740468767157,-561.29,0.00057534,120]
[354389685,1740468767168,-558.43,0.00057534,120]
[354389686,1740468767177,-500.0,0.00057534,2]
[354389687,1740468767187,-4214.34,0.00057534,120]
[354389688,1740468767197,-1793.36,0.00057534,120]
[354389689,1740468767206,-1107.87,0.00057534,120]
[354389690,1740468767216,-1453.67,0.00057534,30]
[354389691,1740468767225,-1291.79,0.00057534,120]
[354389692,1740468767234,-2203.33,0.00057534,120]
[354389693,1740468767243,-2186.37,0.00057534,120]
[354389694,1740468767252,-511.59628155,0.00057534,120]
[354389695,1740468767261,-2099.71,0.00057534,120]
[354389696,1740468767270,-1541.65,0.00057534,120]
[354389697,1740468767279,-500.0,0.00057534,2]
[354389698,1740468767287,-493.37990723,0.00057534,120]
[354389699,1740468767296,-500.0,0.00057534,120]
[354389700,1740468767306,-2864.64,0.00057534,120]
[354389701,1740468767315,-500.0,0.00057534,120]
[354389702,1740468767324,-1803.36,0.00057534,120]
[354389703,1740468767334,-1506.59,0.00057534,120]
[354389704,1740468767346,-1568.57,0.00057534,120]
[354389705,1740468767356,-980.59,0.00057534,120]
[354389706,1740468767366,-1792.49,0.00057534,120]
[354389707,1740468767375,-500.0,0.00057534,120]
[354389708,1740468767384,-1620.72,0.00057534,120]
[354389709,1740468767394,-500.0,0.00057534,120]
[354389710,1740468767404,-659.49,0.00057534,120]
[354389711,1740468767414,-500.0,0.00057534,120]
[354389712,1740468767426,-3340.49,0.00057534,120]
[354389713,1740468767437,-150.979023,0.00057534,120]
[354389714,1740468767447,-849.91,0.00057534,120]
[354389715,1740468767458,-668.51,0.00057534,120]
[354389716,1740468767468,-680.52,0.00057534,120]
[354389717,1740468767479,-1680.11,0.00057534,120]
[354389718,1740468767490,-500.0,0.00057534,120]
[354389719,1740468767500,-500.0,0.00057534,120]
[354389720,1740468767511,-2006.24,0.00057534,120]
[354389721,1740468767521,-2470.99,0.00057534,120]
[354389722,1740468767530,-1713.5,0.00057534,120]
[354389723,1740468767540,-365.03,0.0005756,2]
[354389724,1740468767550,-57184.68574415,0.00057808,2]
[354389725,1740468767560,-57184.68574415,0.00057808,2]
[354389726,1740468767570,-57184.68574415,0.00057808,2]
[354389727,1740468767579,-57184.68574415,0.00057808,2]
[354389728,1740468767591,-187.89128306,0.00057808,30]
[354389729,1740468767601,-563.24,0.00057808,120]
[354389730,1740468767610,-580.45,0.00057808,120]
[354389731,1740468767620,-167.182594,0.00057808,120]
[354389732,1740468767630,-406.014874,0.00057808,120]
[354389733,1740468767640,-554.357489,0.00057808,120]
[354389734,1740468767649,-500.0,0.00057808,120]
[354389735,1740468767659,-500.0,0.00057808,120]
[354389736,1740468767669,-521.68,0.00057808,120]
[354389737,1740468767679,-500.0,0.00057808,120]
[354389738,1740468767688,-699.56,0.00057808,120]
[354389739,1740468767698,-500.0,0.00057808,120]
[354389740,1740468767707,-500.0,0.00057808,120]
[354389741,1740468767716,-500.0,0.00057808,120]
[354389742,1740468767726,-500.0,0.00057808,120]
[354389743,1740468767736,-687.3,0.00057808,120]
[354389744,1740468767746,-500.0,0.00057808,120]
[354389745,1740468767755,-500.0,0.00057808,120]
[354389746,1740468767765,-1291.42,0.00057808,120]
[354389747,1740468767774,-333.48846051,0.00057808,120]
[354389748,1740468767783,-500.0,0.00057808,120]
[354389749,1740468767794,-500.0,0.00057808,120]
[354389750,1740468767803,-500.0,0.00057808,120]
[354389751,1740468767813,-850.45,0.00057808,120]
[354389752,1740468767824,-500.0,0.00057808,120]
[354389753,1740468767834,-500.0,0.00057808,120]
[354389754,1740468767847,-836.92,0.00057808,120]
[354389755,1740468767858,-925.53,0.00057808,120]
[354389756,1740468767869,-525.48,0.00057808,120]
[354389757,1740468767879,-500.0,0.00057808,120]
[354389758,1740468767890,-1017.7,0.00057808,120]
[354389759,1740468767901,-620.4,0.00057808,120]
[354389760,1740468767911,-500.0,0.00057808,120]
[354389761,1740468767922,-637.38,0.00057808,120]
[354389762,1740468767933,-500.0,0.00057808,120]
[354389763,1740468767943,-822.2,0.00057808,120]
[354389764,1740468767954,-500.0,0.00057808,120]
[354389765,1740468767964,-500.0,0.00057808,120]
[354389766,1740468767974,-543.16,0.00057808,120]
[354389767,1740468767984,-494.17740846,0.00057808,120]
[354389768,1740468767995,-1571.07,0.00057808,120]
[354389769,1740468768006,-848.24,0.00057808,120]
[354389770,1740468768016,-943.15,0.00057808,120]
[354389771,1740468768027,-500.0,0.00057808,120]
[354389772,1740468768039,-1168.63,0.00057808,120]
[354389773,1740468768049,-500.0,0.00057808,120]
[354389774,1740468768059,-517.51,0.00057808,120]
[354389775,1740468768069,-951.32,0.00057808,120]
[354389776,1740468768079,-2000.0,0.00057808,30]
[354389777,1740468768094,-500.0,0.00057808,120]
[354389778,1740468768105,-500.0,0.00057808,120]
[354389779,1740468768117,-500.0,0.00057808,120]
[354389780,1740468768128,-500.0,0.00057808,120]
[354389781,1740468768142,-500.0,0.00057808,120]
[354389782,1740468768153,-500.0,0.00057808,120]
[354389783,1740468768166,-777.26,0.00057808,120]
[354389784,1740468768177,-500.0,0.00057808,120]
[354389785,1740468768187,-500.0,0.00057808,120]
[354389786,1740468768199,-560.94,0.00057808,120]
[354389787,1740468768209,-306.68374817,0.00057808,120]
[354389788,1740468768220,-404.43,0.00057808,7]
[354389789,1740468768231,-500.0,0.00057808,120]
[354389790,1740468768243,-1128.12,0.00057808,120]
[354389791,1740468768253,-610.79,0.00057808,120]
[354389792,1740468768263,-424.57244294,0.00057808,120]
[354389793,1740468768273,-630.83,0.00057808,120]
[354389794,1740468768284,-500.0,0.00057808,120]
[354389795,1740468768294,-500.0,0.00057808,120]
[354389796,1740468768304,-500.0,0.00057808,120]
[354389797,1740468768315,-500.0,0.00057808,120]
[354389798,1740468768326,-500.0,0.00057808,120]
[354389799,1740468768338,-641.8,0.00057808,120]
[354389800,1740468768352,-500.0,0.00057808,120]
[354389801,1740468768363,-1736.97,0.00057808,120]
[354389802,1740468768374,-500.0,0.00057808,120]
[354389803,1740468768385,-500.0,0.00057808,120]
[354389804,1740468768396,-551.92,0.00057808,120]
[354389805,1740468768406,-500.0,0.00057808,120]
[354389806,1740468768418,-829.97,0.00057808,120]
[354389807,1740468768430,-1884.67,0.00057808,120]
[354389808,1740468768441,-1959.02,0.00057808,120]
[354389809,1740468768452,-687.65,0.00057808,120]
[354389810,1740468768463,-1049.16,0.00057808,120]
[354389811,1740468768473,-500.0,0.00057808,120]
[354389812,1740468768484,-500.0,0.00057808,120]
[354389813,1740468768495,-500.0,0.00057808,120]
[354389814,1740468768505,-500.0,0.00057808,120]
[354389815,1740468768515,-500.0,0.00057808,120]
[354389816,1740468768526,-910.65,0.00057808,120]
[354389817,1740468768537,-500.0,0.00057808,120]
[354389818,1740468768549,-500.0,0.00057808,120]
[354389819,1740468768560,-500.0,0.00057808,120]
[354389820,1740468768571,-500.0,0.00057808,120]
[354389821,1740468768582,-500.0,0.00057808,120]
[354389822,1740468768594,-1220.8,0.00057808,120]
[354389823,1740468768604,-500.0,0.00057808,120]
[354389824,1740468768614,-500.0,0.00057808,120]
[354389825,1740468768624,-500.0,0.00057808,120]
[354389826,1740468768634,-522.31,0.00057808,120]
[354389827,1740468768645,-1188.98,0.00057808,120]
[354389828,1740468768655,-526.28,0.00057808,120]
[354389829,1740468768665,-1040.34,0.00057808,120]
[354389830,1740468768674,-500.0,0.00057808,120]
[354389831,1740468768684,-724.24,0.00057808,120]
[354389832,1740468768694,-500.0,0.00057808,120]
[354389833,1740468768704,-1422.51,0.00057808,120]
[354389834,1740468768714,-1615.65,0.00057808,120]
[354389835,1740468768724,-500.0,0.00057808,120]
[354389836,1740468768734,-992.42,0.00057808,20]
[354389837,1740468768745,-901.44,0.00057808,120]
[354389838,1740468768756,-816.88,0.00057808,120]
[354389839,1740468768766,-500.0,0.00057808,120]
[354389840,1740468768776,-500.0,0.00057808,120]
[354389841,1740468768787,-671.92,0.00057808,120]
[354389842,1740468768798,-955.28,0.00057808,120]
[354389843,1740468768808,-1525.72,0.00057808,120]
[354389844,1740468768819,-500.0,0.00057808,40]
[354389845,1740468768830,-361.37905117,0.00057808,120]
[354389846,1740468768842,-1437.76,0.00057808,120]
[354389847,1740468768853,-1132.0,0.00057808,120]
[354389848,1740468768863,-1768.38,0.00057808,120]
[354389849,1740468768873,-872.14,0.00057808,120]
[354389850,1740468768883,-1405.94,0.00057808,120]
[354389851,1740468768894,-500.0,0.00057808,120]
[354389852,1740468768903,-745.77,0.00057808,120]
[354389853,1740468768914,-1000.0,0.00057808,120]
[354389854,1740468768924,-500.0,0.00057808,120]
[354389855,1740468768935,-820.25,0.00057808,120]
[354389856,1740468768946,-778.18,0.00057808,120]
[354389857,1740468768958,-500.0,0.00057808,120]
[354389858,1740468768969,-500.0,0.00057808,120]
[354389859,1740468768980,-618.03,0.00057808,120]
[354389860,1740468768990,-538.57,0.00057808,120]
[354389861,1740468769002,-813.45,0.00057808,120]
[354389862,1740468769013,-659.87,0.00057808,120]
[354389863,1740468769024,-542.24,0.00057808,120]
[354389864,1740468769034,-1379.17,0.00057808,120]
[354389865,1740468769046,-1790.29,0.00057808,120]
[354389866,1740468769058,-817.76,0.00057808,120]
[354389867,1740468769070,-1159.57,0.00057808,120]
[354389868,1740468769082,-500.0,0.00057808,120]
[354389869,1740468769098,-500.0,0.00057808,120]
[354389870,1740468769110,-500.0,0.00057808,120]
[354389871,1740468769121,-500.0,0.00057808,120]
[354389872,1740468769133,-1035.42,0.00057808,120]
[354389873,1740468769145,-1067.5,0.00057808,120]
[354389874,1740468769156,-500.0,0.00057808,120]
[354389875,1740468769169,-911.5,0.00057808,120]
[354389876,1740468769181,-782.71,0.00057808,120]
[354389877,1740468769192,-692.81,0.00057808,120]
[354389878,1740468769202,-500.0,0.00057808,120]
[354389879,1740468769214,-1417.28,0.00057808,120]
[354389880,1740468769225,-4827.95,0.00057808,120]
[354389881,1740468769237,-907.1,0.00057808,120]
[354389882,1740468769248,-1025.54,0.00057808,120]
[354389883,1740468769262,-972.52,0.00057808,120]
[354389884,1740468769274,-500.0,0.00057808,120]
[354389885,1740468769285,-1147.6,0.00057808,120]
[354389886,1740468769297,-954.71,0.00057808,120]
[354389887,1740468769308,-508.53,0.00057808,120]
[354389888,1740468769319,-500.0,0.00057808,120]
[354389889,1740468769329,-1526.64,0.00057808,120]
[354389890,1740468769344,-672.91,0.00057808,120]
[354389891,1740468769355,-927.58,0.00057808,120]
[354389892,1740468769365,-626.60209943,0.00057808,120]
[354389893,1740468769375,-500.0,0.00057808,120]
[354389894,1740468769386,-1242.39,0.00057808,120]
[354389895,1740468769396,-871.61,0.00057808,120]
[354389896,1740468769407,-1600.52,0.00057808,120]
[354389897,1740468769418,-549.43,0.00057808,120]
[354389898,1740468769429,-1142.54,0.00057808,120]
[354389899,1740468769440,-552.98,0.00057808,120]
[354389900,1740468769451,-1401.97,0.00057808,120]
[354389901,1740468769462,-1245.93,0.00057808,120]
[354389902,1740468769473,-1200.36,0.00057808,120]
[354389903,1740468769485,-228.6201997,0.00057808,30]
[354389904,1740468769496,-500.0,0.00057808,120]
[354389905,1740468769506,-504.05,0.00057808,120]
[354389906,1740468769518,-500.0,0.00057808,120]
[354389907,1740468769529,-971.46,0.00057808,120]
[354389908,1740468769539,-500.0,0.00057808,120]
[354389909,1740468769550,-500.0,0.00057808,120]
[354389910,1740468769561,-500.0,0.00057808,120]
[354389911,1740468769812,-599.74,0.00057808,120]
[354389912,1740468769822,-500.0,0.00057808,120]
[354389913,1740468769832,-515.75,0.00057808,120]
[354389914,1740468769843,-1301.53,0.00057808,120]
[354389915,1740468769852,-282.49948598,0.00057808,120]
[354389916,1740468769862,-500.0,0.00057808,120]
[354389917,1740468769871,-500.0,0.00057808,120]
[354389918,1740468769881,-1377.93,0.00057808,120]
[354389919,1740468769891,-519.39,0.00057808,120]
[354389920,1740468769901,-623.61,0.00057808,120]
[354389921,1740468769910,-500.0,0.00057808,120]
[354389922,1740468769920,-1303.38,0.00057808,120]
[354389923,1740468769930,-500.0,0.00057808,120]
[354389924,1740468769940,-500.0,0.00057808,120]
[354389925,1740468769950,-366.60182279,0.00057808,120]
[354389926,1740468769960,-585.47,0.00057808,120]
[354389927,1740468769971,-1349.4,0.00057808,120]
[354389928,1740468769981,-500.0,0.00057808,120]
[354389929,1740468769991,-552.97,0.00057808,120]
[354389930,1740468770000,-741.84,0.00057808,120]
[354389931,1740468770010,-700.58,0.00057808,2]
[354389932,1740468770020,-2351.09,0.00057808,2]
[354389933,1740468770030,-500.0,0.00057808,120]
[354389934,1740468770040,-994.98,0.00057808,30]
[354389935,1740468770050,-500.0,0.00057808,120]
[354389936,1740468770060,-715.33,0.00057808,120]
[354389937,1740468770071,-500.0,0.00057808,120]
[354389938,1740468770080,-943.25,0.00057808,120]
[354389939,1740468770092,-1439.89,0.00057808,120]
[354389940,1740468770103,-657.52,0.00057808,120]
[354389941,1740468770113,-500.0,0.00057808,120]
[354389942,1740468770124,-523.79,0.00057808,120]
[354389943,1740468770135,-500.0,0.00057808,120]
[354389944,1740468770145,-1664.27,0.00057808,120]
[354389945,1740468770154,-943.64,0.00057808,120]
[354389946,1740468770165,-516.4,0.00057808,120]
[354389947,1740468770175,-712.11,0.00057808,120]
[354389948,1740468770186,-500.0,0.00057808,120]
[354389949,1740468770195,-500.0,0.00057808,120]
[354389950,1740468770206,-500.0,0.00057808,120]
[354389951,1740468770215,-888.35,0.00057808,120]
[354389952,1740468770225,-500.0,0.00057808,120]
[354389953,1740468770235,-522.22,0.00057808,120]
[354389954,1740468770245,-1032.87,0.00057808,120]
[354389955,1740468770255,-500.0,0.00057808,120]
[354389956,1740468770264,-1438.9,0.00057808,120]
[354389957,1740468770275,-570.8,0.00057808,120]
[354389958,1740468770285,-815.66,0.00057808,120]
[354389959,1740468770295,-500.0,0.00057808,120]
[354389960,1740468770305,-500.0,0.00057808,120]
[354389961,1740468770315,-1275.45,0.00057808,120]
[354389962,1740468770325,-3980.64,0.00057808,120]
[354389963,1740468770336,-500.0,0.00057808,120]
[354389964,1740468770349,-500.0,0.00057808,120]
[354389965,1740468770358,-500.0,0.00057808,120]
[354389966,1740468770368,-1206.75,0.00057808,120]
[354389967,1740468770378,-500.0,0.00057808,120]
[354389968,1740468770388,-1130.49,0.00057808,120]
[354389969,1740468770398,-1535.83,0.00057808,120]
[354389970,1740468770408,-1768.01,0.00057808,120]
[354389971,1740468770417,-500.0,0.00057808,120]
[354389972,1740468770427,-664.86,0.00057808,120]
[354389973,1740468770436,-696.61,0.00057808,120]
[354389974,1740468770446,-1200.87,0.00057808,120]
[354389975,1740468770456,-1522.97,0.00057808,120]
[354389976,1740468770466,-500.0,0.00057808,120]
[354389977,1740468770476,-500.0,0.00057808,120]
[354389978,1740468770485,-1393.05,0.00057808,120]
[354389979,1740468770495,-894.01,0.00057808,120]
[354389980,1740468770505,-986.38,0.00057808,120]
[354389981,1740468770515,-1886.6,0.00057808,120]
[354389982,1740468770525,-1184.76,0.00057808,120]
[354389983,1740468770535,-1319.72,0.00057808,120]
[354389984,1740468770545,-2022.2,0.00057808,120]
[354389985,1740468770555,-1099.29,0.00057808,120]
[354389986,1740468770565,-512.51,0.00057808,120]
[354389987,1740468770574,-517.98,0.00057808,120]
[354389988,1740468770585,-1030.18,0.00057808,120]
[354389989,1740468770598,-538.2602461,0.00057808,120]
[354389990,1740468770608,-1444.43,0.00057808,120]
[354389991,1740468770618,-971.18,0.00057808,120]
[354389992,1740468770628,-1142.3,0.00057808,120]
[354389993,1740468770639,-1194.04,0.00057808,120]
[354389994,1740468770649,-1748.82,0.00057808,120]
[354389995,1740468770659,-679.54,0.00057808,120]
[354389996,1740468770669,-1309.17,0.00057808,120]
[354389997,1740468770679,-500.0,0.00057808,120]
[354389998,1740468770689,-587.74,0.00057808,120]
[354389999,1740468770699,-778.7,0.00057808,120]
[354390000,1740468770709,-733.26,0.00057808,120]
[354390001,1740468770719,-730.67,0.00057808,120]
[354390002,1740468770729,-598.78,0.00057808,120]
[354390003,1740468770739,-1016.76,0.00057808,120]
[354390004,1740468770748,-789.0,0.00057808,120]
[354390005,1740468770758,-343.780273,0.00057808,120]
[354390006,1740468770768,-500.0,0.00057808,120]
[354390007,1740468770778,-1145.46,0.00057808,120]
[354390008,1740468770788,-4362.55,0.00057808,120]
[354390009,1740468770797,-631.53,0.00057808,120]
[354390010,1740468770807,-969.91,0.00057808,120]
[354390011,1740468770817,-759.14,0.00057808,120]
[354390012,1740468770827,-500.0,0.00057808,120]
[354390013,1740468770838,-3017.39,0.00057808,120]
[354390014,1740468770853,-2220.86,0.00057808,120]
[354390015,1740468770863,-318.751745,0.00057808,120]
[354390016,1740468770874,-1553.03,0.00057808,120]
[354390017,1740468770884,-722.9,0.00057808,120]
[354390018,1740468770894,-578.67466614,0.00057808,120]
[354390019,1740468770904,-856.37,0.00057808,120]
[354390020,1740468770914,-910.26,0.00057808,120]
[354390021,1740468770924,-500.0,0.00057808,120]
[354390022,1740468770934,-1830.19,0.00057808,120]
[354390023,1740468770944,-887.73,0.00057808,120]
[354390024,1740468770954,-1715.31,0.00057808,120]
[354390025,1740468770963,-500.0,0.00057808,120]
[354390026,1740468770973,-500.0,0.00057808,120]
[354390027,1740468770983,-686.54,0.00057808,120]
[354390028,1740468770993,-410.47385418,0.00057808,120]
[354390029,1740468771002,-2424.1,0.00057808,120]
[354390030,1740468771012,-500.0,0.00057808,120]
[354390031,1740468771022,-1521.55,0.00057808,120]
[354390032,1740468771031,-823.47,0.00057808,120]
[354390033,1740468771040,-2919.48,0.00057808,120]
[354390034,1740468771050,-1738.48,0.00057808,120]
[354390035,1740468771060,-915.34,0.00057808,120]
[354390036,1740468771070,-2711.99,0.00057808,120]
[354390037,1740468771081,-576.99,0.00057808,120]
[354390038,1740468771094,-500.0,0.00057808,120]
[354390039,1740468771113,-2110.84,0.00057808,120]
[354390040,1740468771124,-637.74,0.00057808,120]
[354390041,1740468771134,-2315.41,0.00057808,120]
[354390042,1740468771144,-3875.43,0.00057808,7]
[354390043,1740468771155,-517.45489499,0.00057808,120]
[354390044,1740468771165,-1035.71,0.00057808,120]
[354390045,1740468771174,-500.0,0.00057808,60]
[354390046,1740468771184,-750.25,0.00057808,120]
[354390047,1740468771193,-500.0,0.00057808,120]
[354390048,1740468771203,-500.0,0.00057808,120]
[354390049,1740468771212,-3264.88,0.00057808,120]
[354390050,1740468771222,-2938.93,0.00057808,120]
[354390051,1740468771231,-1210.86,0.00057808,120]
[354390052,1740468771241,-534.95,0.00057808,120]
[354390053,1740468771251,-2458.44,0.00057808,120]
[354390054,1740468771261,-703.65,0.00057808,120]
[354390055,1740468771271,-1556.62,0.00057808,120]
[354390056,1740468771280,-500.0,0.00057808,120]
[354390057,1740468771290,-2761.69,0.00057808,120]
[354390058,1740468771300,-585.51,0.00057808,120]
[354390059,1740468771310,-2649.21,0.00057808,120]
[354390060,1740468771320,-1981.89,0.00057808,120]
[354390061,1740468771330,-689.83,0.00057808,120]
[354390062,1740468771343,-2553.02,0.00057808,120]
[354390063,1740468771353,-3211.4,0.00057808,120]
[354390064,1740468771362,-1493.71,0.00057808,120]
[354390065,1740468771372,-1352.07,0.00057808,120]
[354390066,1740468771381,-2909.1,0.00057808,120]
[354390067,1740468771391,-1667.75,0.00057808,120]
[354390068,1740468771400,-1519.71,0.00057808,120]
[354390069,1740468771410,-4349.64,0.00057808,120]
[354390070,1740468771421,-752.34,0.00057808,120]
[354390071,1740468771432,-864.91,0.00057808,120]
[354390072,1740468771443,-1290.66,0.00057808,120]
[354390073,1740468771454,-500.0,0.00057808,120]
[354390074,1740468771464,-910.81,0.00057808,5]
[354390075,1740468771475,-2901.27,0.00057808,120]
[354390076,1740468771485,-1857.67,0.00057808,120]
[354390077,1740468771495,-500.0,0.00057808,120]
[354390078,1740468771505,-2986.93,0.00057808,120]
[354390079,1740468771516,-2864.49,0.00057808,120]
[354390080,1740468771527,-2305.88,0.00057808,120]
[354390081,1740468771541,-500.0,0.00057808,120]
[354390082,1740468771552,-2121.17,0.00057808,120]
[354390083,1740468771562,-500.0,0.00057808,120]
[354390084,1740468771571,-2477.45,0.00057808,120]
[354390085,1740468771581,-1752.42,0.00057808,120]
[354390086,1740468771592,-538.64,0.00057808,120]
[354390087,1740468771601,-1452.1,0.00057808,120]
[354390088,1740468771611,-1822.96,0.00057808,120]
[354390089,1740468771620,-1851.24,0.00057808,120]
[354390090,1740468771630,-607.87,0.00057808,120]
[354390091,1740468771639,-2265.65,0.00057808,120]
[354390092,1740468771650,-3192.11,0.00057808,120]
[354390093,1740468771659,-3707.86,0.00057808,120]
[354390094,1740468771669,-1530.35,0.00057808,120]
[354390095,1740468771679,-1400.72,0.00057808,120]
[354390096,1740468771689,-813.46,0.00057808,120]
[354390097,1740468771699,-1028.29,0.00057808,120]
[354390098,1740468771708,-1470.7,0.00057808,120]
[354390099,1740468771717,-640.5,0.00057808,120]
[354390100,1740468771727,-2337.12,0.00057808,120]
[354390101,1740468771736,-3975.46,0.00057808,120]
[354390102,1740468771746,-3333.6,0.00057808,120]
[354390103,1740468771755,-5873.49,0.00057808,120]
[354390104,1740468771765,-1036.75,0.00057808,120]
[354390105,1740468771775,-500.0,0.00057808,120]
[354390106,1740468771785,-562.09,0.00057808,120]